bitfinex/quotes_SOLUSD_20250204
["timestamp","ask_amount","ask_price","bid_price","bid_amount"]
[1738697152473,11.1659,217.97,217.88,17.62727291]
[1738697152871,17.62727291,217.96,217.86,17.62727291]
[1738697153274,17.62727291,217.96,217.85,4.6202]
[1738697153275,17.62727291,217.96,217.88,17.62727291]
[1738697153472,17.62727291,217.98,217.9,17.62727291]
[1738697153698,22.21437291,218.01,217.93,4.5886]
[1738697154165,22.21437291,218.01,217.92,17.62727291]
[1738697154361,22.21437291,218.01,217.92,22.21607291]
[1738697155187,17.62727291,217.99,217.9,17.62727291]
[1738697155572,17.62727291,217.97,217.9,17.62727291]
[1738697155962,4.5879,217.96,217.9,17.62727291]
[1738697159487,22.21507291,217.97,217.9,22.21637291]
[1738697160388,17.62727291,218.01,217.92,17.62727291]
[1738697161272,17.62727291,218.01,217.93,4.5886]
[1738697161475,17.62727291,218.01,217.94,17.62727291]
[1738697161795,17.62727291,218.03,217.94,17.62727291]
[1738697161976,17.62727291,218.01,217.94,17.62727291]
[1738697162176,17.62727291,218.03,217.94,17.62727291]
[1738697162382,17.62727291,218.05,217.96,17.62727291]
[1738697162590,0.063,218.04,217.96,17.62727291]
[1738697163291,0.063,218.04,217.97,4.5877]
[1738697163480,17.62727291,218.01,217.92,17.65727291]
[1738697163685,17.62727291,217.99,217.92,0.03]
[1738697163872,17.69027291,218.04,217.96,17.62727291]
[1738697163873,0.063,218.04,217.96,17.62727291]
[1738697164076,0.063,218.04,217.99,17.62727291]
[1738697165499,0.063,218.04,217.99,22.21437291]
[1738697166096,17.62727291,218.0,217.94,4.5882]
[1738697166396,17.62727291,218.0,217.93,22.21587291]
[1738697166907,17.62727291,217.98,217.92,0.03]
[1738697167386,17.62727291,218.0,217.93,17.62727291]
[1738697167585,22.21407291,218.02,217.93,17.62727291]
[1738697168199,0.063,218.04,217.97,17.62727291]
[1738697168510,0.063,218.04,217.99,17.62727291]
[1738697169285,0.063,218.04,218.01,17.62727291]
[1738697169697,0.063,218.04,217.99,37.62727291]
[1738697170400,0.063,218.04,217.99,17.62727291]
[1738697170584,0.063,218.04,217.97,22.21497291]
[1738697170787,17.69027291,218.04,217.97,22.21497291]
[1738697170995,0.063,218.04,218.01,17.62727291]
[1738697171514,0.063,218.04,218.02,4.5867]
[1738697171893,0.063,218.04,217.97,17.62727291]
[1738697172096,17.69027291,218.04,217.97,22.21487291]
[1738697173822,17.62727291,218.02,217.95,4.5882]
[1738697173999,17.62727291,218.0,217.95,4.5882]
[1738697174200,17.62727291,218.02,217.95,4.5882]
[1738697174801,0.063,218.04,217.97,17.62727291]
[1738697175110,0.063,218.04,218.02,17.62727291]
[1738697175707,0.063,218.04,218.0,17.62727291]
[1738697176013,17.62727291,218.02,217.94,17.62727291]
[1738697176242,17.62727291,218.0,217.93,4.5886]
[1738697176425,17.62727291,217.98,217.92,4.6188]
[1738697176998,17.62727291,217.98,217.92,0.03]
[1738697177219,6.99145099,218.02,217.92,0.03]
[1738697177220,17.62727291,217.96,217.92,0.03]
[1738697177835,17.62727291,217.94,217.92,0.03]
[1738697178132,0.8605707,217.93,217.92,0.03]
[1738697178297,17.62727291,217.94,217.92,0.03]
[1738697178504,17.62727291,217.98,217.92,0.03]
[1738697178715,17.62727291,218.0,217.92,17.65727291]
[1738697179334,17.62727291,218.0,217.93,4.5886]
[1738697179703,17.62727291,218.0,217.92,17.65727291]
[1738697180004,17.62727291,217.98,217.92,0.03]
[1738697180318,17.62727291,217.94,217.92,0.03]
[1738697180733,17.62727291,217.96,217.92,0.03]
[1738697180927,4.5873,218.0,217.92,0.03]
[1738697180928,17.62727291,217.94,217.92,0.03]
[1738697181303,23.75847291,218.02,217.92,17.65727291]
[1738697181609,28.34517291,218.02,217.94,17.62727291]
[1738697181803,17.62727291,217.98,217.92,0.03]
[1738697183959,17.62727291,217.93,217.92,0.03]
[1738697185013,22.21587291,217.93,217.92,0.03]
[1738697185632,1.0,217.91,217.85,0.03]
[1738697185833,17.62727291,217.86,217.85,0.03]
[1738697186513,2.0,217.85,217.81,0.03]
[1738697186732,17.62727291,217.82,217.81,0.03]
[1738697187135,23.07936654,217.82,217.81,0.03]
[1738697188049,23.07936654,217.82,217.74,0.03]
[1738697188252,17.62727291,217.76,217.74,0.03]
[1738697188554,17.62727291,217.8,217.74,0.03]
[1738697188935,17.62727291,217.78,217.74,0.03]
[1738697189149,17.62727291,217.8,217.74,0.03]
[1738697189363,17.62727291,217.82,217.74,17.65727291]
[1738697189535,17.62727291,217.8,217.74,0.03]
[1738697191307,17.62727291,217.8,217.69,11.5142]
[1738697191308,1.0,217.6,217.59,0.03]
[1738697191482,1.0,217.54,217.5,0.03]
[1738697191646,1.0,217.54,217.5,17.65727291]
[1738697191973,1.0,217.59,217.5,17.65727291]
[1738697192143,1.0,217.51,217.5,0.03]
[1738697194652,18.62727291,217.51,217.5,0.03]
[1738697195264,19.48962173,217.51,217.5,0.03]
[1738697195692,1.0,217.51,217.5,0.03]
[1738697197785,1.0,217.53,217.5,0.03]
[1738697198177,1.0,217.53,217.48,0.06735051]
[1738697198375,1.0,217.55,217.49,17.62727291]
[1738697198762,1.0,217.55,217.5,0.12549]
[1738697198965,1.0,217.53,217.5,0.12549]
[1738697199174,1.0,217.55,217.5,0.12549]
[1738697199591,3.45601044,217.65,217.53,17.62727291]
[1738697199592,1.0,217.57,217.53,17.62727291]
[1738697200571,1.0,217.57,217.54,0.12549]
[1738697200972,1.0,217.57,217.51,17.75276291]
[1738697201172,1.0,217.59,217.54,17.62727291]
[1738697201385,1.0,217.59,217.55,13.78831853]
[1738697201867,1.0,217.59,217.57,0.25098]
[1738697202465,1.0,217.59,217.54,37.62727291]
[1738697202896,1.0,217.59,217.57,0.25098]
[1738697203396,1.0,217.57,217.54,24.5968]
[1738697203570,1.0,217.57,217.55,0.25098]
[1738697204494,1.0,217.53,217.5,4.6275]
[1738697204695,1.0,217.53,217.51,20.0]
[1738697205570,1.0,217.55,217.52,13.78831853]
[1738697205776,1.0,217.59,217.52,31.41559144]
[1738697206207,1.0,217.59,217.54,17.62727291]
[1738697206376,1.0,217.57,217.52,31.41559144]
[1738697206900,1.0,217.55,217.52,0.25098]
[1738697207198,1.0,217.59,217.54,17.62727291]
[1738697207385,1.0,217.59,217.58,17.87825291]
[1738697207581,0.063,217.6,217.59,0.37647]
[1738697207795,0.063,217.6,217.59,13.78831853]
[1738697208378,0.99,219.44,217.63,20.37647]
[1738697208379,1.0,217.67,217.63,20.37647]
[1738697208697,1.0,217.75,217.68,0.12549]
[1738697208879,1.0,217.75,217.7,17.62727291]
[1738697209081,1.0,217.72,217.7,17.62727291]
[1738697209290,1.0,217.72,217.7,22.22057291]
[1738697209497,1.0,217.72,217.67,4.84488]
[1738697209781,1.0,217.74,217.68,0.12549]
[1738697210190,1.0,217.68,217.66,17.62727291]
[1738697210387,1.0,217.68,217.64,17.62727291]
[1738697210589,1.0,217.68,217.63,13.78831853]
[1738697211190,1.0,217.68,217.65,20.0]
[1738697211893,1.0,217.72,217.67,0.12549]
[1738697212202,1.0,217.75,217.69,17.62727291]
[1738697212407,1.0,217.72,217.69,17.62727291]
[1738697212983,17.62727291,217.76,217.68,17.62727291]
[1738697213195,17.62727291,217.72,217.66,0.25098]
[1738697213598,17.62727291,217.72,217.66,4.84528]
[1738697214106,17.62727291,217.72,217.64,22.22187291]
[1738697215402,17.62727291,217.72,217.65,0.37647]
[1738697215584,17.62727291,217.72,217.63,4.5949]
[1738697215585,22.22027291,217.72,217.63,4.5949]
[1738697215778,17.62727291,217.7,217.62,22.22237291]
[1738697215981,17.62727291,217.7,217.6,17.62727291]
[1738697216300,17.62727291,217.66,217.59,4.5957]
[1738697216507,5.593,217.72,217.6,18.00374291]
[1738697216508,17.62727291,217.68,217.6,18.00374291]
[1738697216674,17.62727291,217.66,217.59,4.5957]
[1738697217011,17.62727291,217.64,217.56,17.62727291]
[1738697217211,17.62727291,217.64,217.57,0.25098]
[1738697217505,17.62727291,217.68,217.6,17.62727291]
[1738697217881,22.22117291,217.68,217.6,17.62727291]
[1738697218303,17.62727291,217.64,217.56,17.62727291]
[1738697218607,17.62727291,217.64,217.56,22.22357291]
[1738697221112,17.62727291,217.58,217.5,17.62727291]
[1738697221280,17.62727291,217.54,217.47,0.03]
[1738697221486,17.62727291,217.52,217.47,0.03]
[1738697221685,17.62727291,217.5,217.47,0.03]
[1738697222089,17.62727291,217.48,217.47,0.03]
[1738697222407,17.62727291,217.5,217.47,0.03]
[1738697223610,0.86232668,217.49,217.47,0.03]
[1738697223788,17.62727291,217.48,217.47,0.03]
[1738697224112,17.62727291,217.5,217.47,0.03]
[1738697224414,17.62727291,217.52,217.47,0.03]
[1738697225917,17.62727291,217.51,217.43,18.00374291]
[1738697226418,17.62727291,217.53,217.45,17.62727291]
[1738697226923,17.62727291,217.51,217.43,17.62727291]
[1738697227230,0.86222436,217.53,217.41,17.62727291]
[1738697227231,17.62727291,217.49,217.41,17.62727291]
[1738697227709,17.62727291,217.49,217.41,22.22667291]
[1738697228213,17.62727291,217.49,217.42,0.37647]
[1738697228518,17.62727291,217.49,217.41,6.26742483]
[1738697228692,18.48951815,217.51,217.41,6.26742483]
[1738697228886,17.62727291,217.49,217.41,6.26742483]
[1738697229112,18.4896203,217.49,217.41,4.5994]
[1738697229912,23.0875203,217.49,217.41,4.5994]
[1738697230113,22.22517291,217.49,217.41,22.22667291]
[1738697230314,17.62727291,217.49,217.41,22.22667291]
[1738697230888,17.62727291,217.51,217.43,17.62727291]
[1738697231109,17.62727291,217.49,217.41,22.22667291]
[1738697231607,80.8,217.52,217.43,17.62727291]
[1738697231786,85.3973,217.52,217.45,17.62727291]
[1738697231987,17.62727291,217.49,217.41,22.22687291]
[1738697232521,17.62727291,217.49,217.4,0.03]
[1738697232730,0.86231734,217.51,217.4,0.03]
[1738697232731,17.62727291,217.45,217.4,0.03]
[1738697232901,17.62727291,217.45,217.4,3.30987676]
[1738697234427,17.62727291,217.43,217.4,3.30987676]
[1738697235020,17.62727291,217.43,217.4,0.03]
[1738697235216,17.62727291,217.41,217.4,0.03]
[1738697235622,17.62727291,217.41,217.38,0.03]
[1738697235623,20.0,217.39,217.38,0.03]
[1738697235924,1.0,217.37,217.36,0.03]
[1738697236108,0.12549,217.36,217.25,0.03]
[1738697236305,17.62727291,217.31,217.25,0.03]
[1738697236506,23.0920676,217.31,217.25,0.03]
[1738697236906,23.2175576,217.31,217.25,0.03]
[1738697237419,0.86309469,217.31,217.25,0.03]
[1738697237622,17.62727291,217.32,217.25,17.65727291]
[1738697237828,17.62727291,217.34,217.26,13.66282853]
[1738697238013,17.62727291,217.34,217.25,17.65727291]
[1738697238014,17.62727291,217.36,217.28,13.69282853]
[1738697238210,17.62727291,217.36,217.3,0.28098]
[1738697238410,17.62727291,217.4,217.32,13.66282853]
[1738697238724,17.62727291,217.4,217.32,18.26422853]
[1738697239317,17.62727291,217.36,217.3,0.15549]
[1738697239536,17.62727291,217.34,217.3,0.03]
[1738697239836,17.62727291,217.32,217.3,0.03]
[1738697240029,0.86304405,217.31,217.3,0.03]
[1738697240409,5.46474405,217.31,217.3,0.03]
[1738697240614,5.59023405,217.31,217.3,0.03]
[1738697241134,5.46474405,217.31,217.3,0.03]
[1738697242143,5.59023405,217.31,217.3,0.03]
[1738697242943,5.46474405,217.31,217.3,0.03]
[1738697243316,17.62727291,217.32,217.3,0.03]
[1738697243514,17.62727291,217.34,217.3,0.03]
[1738697243745,17.62727291,217.36,217.3,0.03]
[1738697244718,17.62727291,217.34,217.3,0.03]
[1738697245214,4.6017,217.31,217.3,0.03]
[1738697245419,5.4647838,217.31,217.3,0.03]
[1738697245620,18.49040157,217.32,217.3,0.03]
[1738697245814,0.86301704,217.31,217.3,0.03]
[1738697246036,5.46471704,217.31,217.3,0.03]
[1738697246238,17.62727291,217.32,217.3,0.03]
[1738697246443,22.22877291,217.32,217.3,0.03]
[1738697246644,23.0917422,217.32,217.3,0.03]
[1738697248543,17.62727291,217.32,217.3,0.03]
[1738697250245,17.62727291,217.34,217.3,0.15549]
[1738697250548,17.62727291,217.32,217.3,0.03]
[1738697251530,22.22887291,217.32,217.3,0.03]
[1738697251946,0.86298953,217.31,217.3,0.03]
[1738697252247,20.12549,217.29,217.28,0.03]
[1738697252451,18.6161117,217.29,217.28,0.03]
[1738697253333,1.12549,217.28,217.25,0.03]
[1738697253534,22.22997291,217.26,217.25,0.03]
[1738697254220,17.62727291,217.26,217.25,0.03]
[1738697254845,17.62727291,217.28,217.25,0.03]
[1738697255724,17.62727291,217.26,217.25,0.03]
[1738697257020,17.12727291,217.26,217.25,0.03]
[1738697258356,21.72997291,217.26,217.25,0.03]
[1738697258877,33.36236291,217.26,217.09,11.5155]
[1738697259153,17.62727291,217.16,217.09,11.5155]
[1738697259337,17.62727291,217.16,217.13,0.25098]
[1738697260160,17.62727291,217.16,217.13,0.12549]
[1738697260332,17.62727291,217.16,217.12,0.03]
[1738697261453,17.62727291,217.16,217.13,0.37647]
[1738697261761,17.62727291,217.18,217.15,0.12549]
[1738697262062,17.62727291,217.16,217.12,0.03]
[1738697262430,17.62727291,217.14,217.12,0.03]
[1738697262674,17.62727291,217.16,217.12,0.03]
[1738697263072,17.62727291,217.14,217.12,0.03]
[1738697263787,0.86362764,217.13,217.12,0.03]
[1738697264376,17.62727291,217.14,217.12,0.03]
[1738697265683,22.23267291,217.14,217.12,0.03]
[1738697266184,0.86367665,217.13,217.12,0.03]
[1738697266408,22.23267291,217.14,217.12,0.03]
[1738697266885,17.62727291,217.14,217.12,0.03]
[1738697267278,4.6045,217.18,217.13,0.25098]
[1738697267279,17.62727291,217.18,217.13,0.25098]
[1738697267479,17.62727291,217.2,217.15,0.12549]
[1738697267989,17.62727291,217.2,217.17,13.66282853]
[1738697268894,17.62727291,217.2,217.13,12.438]
[1738697269261,17.62727291,217.2,217.13,7.8326]
[1738697269466,17.62727291,217.18,217.13,12.4381]
[1738697269666,17.62727291,217.18,217.13,7.8326]
[1738697269874,17.62727291,217.18,217.13,12.438]
[1738697270590,17.62727291,217.2,217.14,13.78831853]
[1738697270768,17.62727291,217.22,217.18,13.53733853]
[1738697272606,17.62727291,217.22,217.17,20.0]
[1738697272607,17.62727291,217.19,217.13,7.8326]
[1738697272783,17.62727291,217.15,217.12,0.03]
[1738697273096,17.12727291,217.13,217.12,0.03]
[1738697273274,17.62727291,217.13,217.12,0.03]
[1738697275177,22.23277291,217.13,217.12,0.03]
[1738697275493,22.35826291,217.13,217.12,0.03]
[1738697275691,28.82664291,217.13,217.12,0.03]
[1738697276209,22.23277291,217.13,217.12,0.03]
[1738697278407,22.35826291,217.13,217.12,0.03]
[1738697279914,36.14658144,217.13,217.12,0.03]
[1738697280084,22.60924291,217.13,217.12,0.03]
[1738697280708,22.23277291,217.13,217.12,0.03]
[1738697281120,17.62727291,217.13,217.12,0.03]
[1738697281318,17.62727291,217.17,217.12,0.03]
[1738697281695,17.62727291,217.17,217.12,0.15549]
[1738697281887,17.62727291,217.17,217.13,4.6055]
[1738697282502,17.62727291,217.21,217.13,4.6055]
[1738697282811,17.62727291,217.15,217.12,0.03]
[1738697283014,0.86331022,217.23,217.12,0.03]
[1738697283015,17.62727291,217.13,217.12,0.03]
[1738697286604,17.62727291,217.13,217.06,0.12549]
[1738697286804,17.62727291,217.11,217.06,0.12549]
[1738697287218,17.62727291,217.07,217.04,1.35064853]
[1738697287417,17.62727291,217.05,217.03,0.03]
[1738697287730,0.86411979,217.04,217.03,0.03]
[1738697288218,17.62727291,217.05,217.03,0.03]
[1738697288540,23.09854209,217.05,217.03,0.03]
[1738697290022,18.49134209,217.05,217.03,0.03]
[1738697290421,23.09854209,217.05,217.03,0.03]
[1738697290623,17.62727291,217.07,217.03,0.03]
[1738697292228,17.62727291,217.09,217.04,0.37647]
[1738697292544,17.62727291,217.09,217.03,0.03]
[1738697293068,17.62727291,217.13,217.06,0.37647]
[1738697293549,17.62727291,217.11,217.05,21.5962]
[1738697294119,17.62727291,217.11,217.06,4.607]
[1738697294346,17.62727291,217.11,217.04,1.2034]
[1738697294534,17.62727291,217.11,217.04,0.37647]
[1738697294928,17.62727291,217.11,217.04,0.12549]
[1738697295246,0.86369618,217.15,217.0,0.50324675]
[1738697295445,17.62727291,217.08,217.0,0.50324675]
[1738697295923,17.62727291,217.08,217.01,4.608]
[1738697296458,17.62727291,217.08,217.0,0.50324675]
[1738697296459,17.62727291,217.04,217.0,0.50324675]
[1738697296645,17.62727291,217.02,217.0,0.50324675]
[1738697298051,14.27601662,217.01,217.0,0.50324675]
[1738697298221,5.47216809,217.01,217.0,0.50324675]
[1738697298428,17.62727291,217.02,217.0,0.50324675]
[1738697298429,22.23517291,217.02,217.0,0.50324675]
[1738697298828,23.09942472,217.02,217.0,0.50324675]
[1738697299227,13.41184853,217.01,217.0,0.50324675]
[1738697299547,23.09942472,217.02,217.0,0.50324675]
[1738697302125,17.62727291,217.02,217.0,0.50324675]
[1738697303450,17.62727291,217.02,217.0,0.53324675]
[1738697304044,17.62727291,217.04,217.0,5.14144675]
[1738697304347,17.62727291,217.04,217.0,0.53324675]
[1738697305435,17.62727291,217.04,217.0,5.14144675]
[1738697305845,17.62727291,217.06,217.01,0.37647]
[1738697306049,17.62727291,217.08,217.01,0.37647]
[1738697306346,80.8,217.14,217.03,0.37647]
[1738697306347,17.62727291,217.1,217.03,0.37647]
[1738697307138,17.62727291,217.08,217.03,0.37647]
[1738697307450,17.62727291,217.08,217.0,22.76871966]
[1738697307649,17.62727291,217.06,217.0,0.53324675]
[1738697307832,17.62727291,217.06,217.0,5.14144675]
[1738697308032,17.62727291,217.06,217.01,0.37647]
[1738697308774,17.62727291,217.08,217.02,13.53733853]
[1738697308940,17.62727291,217.1,217.04,0.12549]
[1738697309960,17.62727291,217.1,217.03,0.37647]
[1738697309961,17.62727291,217.06,217.01,4.608]
[1738697310252,17.62727291,217.04,217.0,0.53324675]
[1738697310461,17.62727291,217.02,217.0,0.53324675]
[1738697310640,0.86426194,217.01,217.0,0.53324675]
[1738697310952,17.62727291,217.02,217.0,0.53324675]
[1738697311149,0.8642419,217.01,217.0,0.53324675]
[1738697311734,17.62727291,217.02,217.0,0.53324675]
[1738697312253,13.41184853,217.0,216.99,0.03]
[1738697312451,17.62727291,217.0,216.99,0.03]
[1738697313232,17.62727291,217.02,216.99,0.03]
[1738697313633,17.62727291,217.0,216.99,0.03]
[1738697313834,17.62727291,217.0,216.99,0.0001]
[1738697313835,31.16461144,217.0,216.99,0.0001]
[1738697314057,35.64732144,217.0,216.99,0.0001]
[1738697314956,35.77281144,217.0,216.99,0.0001]
[1738697315156,13.91380853,216.99,216.98,0.0001]
[1738697315355,14.7783952,216.99,216.98,0.0001]
[1738697315741,15.7783952,216.99,216.98,0.0001]
[1738697315941,14.7783952,216.99,216.98,0.0001]
[1738697316149,13.53733853,216.95,216.82,0.12549]
[1738697316352,17.62727291,216.91,216.82,0.12549]
[1738697316960,20.0,216.88,216.81,0.03]
[1738697317141,17.62727291,216.83,216.81,0.03]
[1738697318243,17.62727291,216.87,216.81,0.03]
[1738697319557,17.62727291,216.91,216.84,0.37647]
[1738697319738,17.62727291,216.89,216.82,1.546]
[1738697320060,17.62727291,216.85,216.82,1.546]
[1738697320360,17.62727291,216.85,216.81,0.03]
[1738697320553,17.62727291,216.85,216.81,0.40647]
[1738697320861,17.62727291,216.83,216.81,0.03]
[1738697321259,17.62727291,216.85,216.81,0.03]
[1738697321661,17.62727291,216.87,216.81,0.03]
[1738697322162,17.62727291,216.89,216.82,0.25098]
[1738697322363,17.62727291,216.91,216.84,0.25098]
[1738697322554,17.62727291,216.93,216.85,17.62727291]
[1738697322748,17.62727291,216.91,216.84,0.25098]
[1738697323063,17.62727291,216.89,216.82,4.6121]
[1738697323455,17.62727291,216.91,216.83,38.00018144]
[1738697323655,17.62727291,216.91,216.83,24.46284291]
[1738697324049,17.62727291,216.91,216.85,0.12549]
[1738697324456,17.62727291,216.93,216.86,0.12549]
[1738697324651,17.62727291,216.95,216.86,0.12549]
[1738697324853,17.62727291,216.97,216.88,13.41184853]
[1738697325064,17.62727291,216.97,216.9,4.6104]
[1738697325259,17.62727291,216.99,216.9,6.2631]
[1738697325465,17.62727291,217.01,216.91,31.54108144]
[1738697325965,17.62727291,216.99,216.91,31.54108144]
[1738697326157,17.62727291,216.99,216.94,20.0]
[1738697326349,17.62727291,217.01,216.95,0.25098]
[1738697327258,17.62727291,216.99,216.95,0.25098]
[1738697327459,0.063,217.01,216.91,0.12549]
[1738697327460,17.62727291,216.97,216.91,0.12549]
[1738697327852,17.62727291,216.97,216.91,5.11206]
[1738697328268,17.62727291,216.97,216.9,1.6527]
[1738697328480,17.62727291,216.95,216.9,1.6527]
[1738697329757,17.62727291,216.97,216.9,1.6527]
[1738697329957,17.62727291,216.97,216.91,0.37647]
[1738697330260,17.62727291,216.97,216.9,21.6527]
[1738697330469,17.62727291,216.97,216.9,26.263]
[1738697330673,17.62727291,216.97,216.91,0.37647]
[1738697330970,17.62727291,216.99,216.91,0.37647]
[1738697331170,17.62727291,216.99,216.92,0.12549]
[1738697331552,17.62727291,216.99,216.93,0.37647]
[1738697332773,17.69027291,217.01,216.93,0.37647]
[1738697333177,17.62727291,216.99,216.93,0.37647]
[1738697333655,17.62727291,216.99,216.93,0.25098]
[1738697333861,17.62727291,216.97,216.93,0.25098]
[1738697334056,17.62727291,216.97,216.9,1.6527]
[1738697334463,17.62727291,216.97,216.9,6.263]
[1738697335361,17.62727291,216.97,216.91,0.25098]
[1738697335557,17.62727291,216.99,216.92,0.12549]
[1738697335755,17.69027291,217.01,216.94,0.12549]
[1738697336357,17.69027291,217.01,216.95,0.25098]
[1738697336563,0.063,217.01,216.96,0.12549]
[1738697336770,0.063,217.01,216.97,0.25098]
[1738697336951,0.063,217.01,216.98,0.12549]
[1738697337151,0.063,217.01,217.0,0.25098]
[1738697337365,0.063,217.01,217.0,18.52200853]
[1738697338273,0.0001,217.01,217.0,20.16800853]
[1738697338456,17.62727291,217.13,217.06,0.12549]
[1738697338776,17.62727291,217.13,217.07,0.25098]
[1738697338972,20.0,217.1,217.04,17.62727291]
[1738697339174,17.62727291,217.05,216.96,6.5552]
[1738697339383,17.62727291,217.03,216.98,0.12549]
[1738697339558,17.62727291,217.05,217.0,0.12549]
[1738697339759,0.063,217.01,217.0,0.12549]
[1738697340364,0.063,217.01,217.0,0.37647]
[1738697340683,0.063,217.01,217.0,31.54108144]
[1738697340853,17.62727291,217.13,217.06,0.12549]
[1738697341054,17.62727291,217.13,217.07,0.37647]
[1738697341257,17.62727291,217.15,217.08,13.66282853]
[1738697341560,0.063,217.17,217.12,0.25098]
[1738697341752,0.063,217.17,217.14,0.25098]
[1738697342057,0.063,217.17,217.16,13.91380853]
[1738697342256,0.063,217.17,217.16,0.50196]
[1738697342578,0.063,217.17,217.16,13.91380853]
[1738697343190,0.063,217.17,217.16,0.50196]
[1738697343374,0.063,217.17,217.16,20.0]
[1738697343687,0.063,217.17,217.16,20.25098]
[1738697344005,0.063,217.17,217.13,17.62727291]
[1738697345297,0.063,217.17,217.13,17.75276291]
[1738697345603,17.69027291,217.17,217.1,4.02]
[1738697345779,4.6677,217.17,217.12,0.12549]
[1738697345977,22.29497291,217.17,217.12,0.12549]
[1738697346179,22.29497291,217.17,217.11,0.12549]
[1738697346491,17.62727291,217.15,217.1,4.02]
[1738697346686,17.62727291,217.15,217.09,0.12549]
[1738697347076,0.063,217.17,217.11,0.12549]
[1738697347280,0.063,217.17,217.13,0.12549]
[1738697347476,4.6677,217.17,217.13,0.12549]
[1738697347878,0.063,217.17,217.13,0.12549]
[1738697348205,0.063,217.17,217.15,0.50196]
[1738697349501,0.063,217.17,217.12,17.62727291]
[1738697349892,17.69027291,217.17,217.09,17.62727291]
[1738697350275,17.69027291,217.17,217.1,0.50196]
[1738697351600,17.62727291,217.15,217.07,17.62727291]
[1738697351804,17.62727291,217.15,217.08,0.12549]
[1738697352896,17.69027291,217.17,217.11,0.12549]
[1738697353103,0.063,217.17,217.13,17.75276291]
[1738697353410,17.69027291,217.17,217.09,17.62727291]
[1738697353606,17.62727291,217.13,217.05,19.24147291]
[1738697353787,17.62727291,217.13,217.05,23.84857291]
[1738697354189,17.62727291,217.13,217.06,0.50196]
[1738697355108,17.62727291,217.13,217.07,4.6068]
[1738697355293,17.62727291,217.13,217.08,0.12549]
[1738697355984,17.62727291,217.13,217.02,11.5196]
[1738697356185,1.0,217.08,216.97,20.0]
[1738697356386,1.0,217.13,217.06,17.62727291]
[1738697356612,1.0,217.13,217.1,17.62727291]
[1738697357415,1.0,217.15,217.1,22.23337291]
[1738697357791,0.063,217.17,217.15,20.0]
[1738697357991,0.063,217.17,217.16,17.62727291]
[1738697358224,0.063,217.17,217.16,18.12923291]
[1738697358928,0.063,217.17,217.16,17.87825291]
[1738697359223,0.063,217.17,217.13,20.0]
[1738697359431,0.063,217.17,217.14,4.6053]
[1738697359619,0.063,217.17,217.15,0.12549]
[1738697359929,0.063,217.17,217.15,0.50196]
[1738697361118,0.063,217.17,217.15,5.10696]
[1738697361715,0.063,217.17,217.15,0.12549]
[1738697362297,0.063,217.17,217.16,38.00374291]
[1738697362510,0.063,217.17,217.16,18.12923291]
[1738697363222,0.063,217.17,217.16,22.73403291]
[1738697366629,1.063,217.17,217.16,0.12549]
[1738697366830,1.063,217.17,217.1,17.62727291]
[1738697366831,1.0,217.14,217.1,17.62727291]
[1738697367128,1.0,217.14,217.11,0.50196]
[1738697367617,1.0,217.14,217.11,0.37647]
[1738697367818,1.0,217.14,217.1,22.23337291]
[1738697368019,1.0,217.16,217.11,0.12549]
[1738697368196,0.063,217.17,217.14,17.62727291]
[1738697368391,0.063,217.17,217.16,17.62727291]
[1738697369200,0.063,217.17,217.16,22.23207291]
[1738697370922,1.0,217.14,217.09,17.62727291]
[1738697371110,1.0,217.14,217.1,4.6061]
[1738697372601,1.0,217.12,217.1,4.6061]
[1738697372804,1.0,217.15,217.11,11.22420234]
[1738697373841,1.0,217.15,217.12,4.6057]
[1738697374637,1.063,217.17,217.12,22.35889872]
[1738697374843,0.063,217.17,217.14,17.75319872]
[1738697375142,0.063,217.17,217.16,17.75319872]
[1738697376224,0.063,217.17,217.16,22.35799872]